bitfinex/quotes_BTCUSD_20241022
["timestamp","ask_amount","ask_price","bid_price","bid_amount"]
[1729574695836,0.23848121,67612.0,67611.0,0.26294416]
[1729574696053,0.171902,67612.0,67611.0,0.26294416]
[1729574696264,0.2384801,67612.0,67611.0,0.26294416]
[1729574696735,0.171902,67612.0,67611.0,0.26294416]
[1729574697424,0.23848255,67612.0,67611.0,0.26294416]
[1729574698321,0.171902,67612.0,67611.0,0.26294416]
[1729574698529,0.23848255,67612.0,67611.0,0.26294416]
[1729574698754,0.23848188,67612.0,67611.0,0.26294416]
[1729574698980,0.171902,67612.0,67611.0,0.26294416]
[1729574699913,0.024,67612.0,67611.0,0.26294416]
[1729574700999,0.171902,67612.0,67611.0,0.26294416]
[1729574702073,0.23848181,67612.0,67611.0,0.26294416]
[1729574702292,0.171902,67612.0,67611.0,0.26294416]
[1729574703420,0.23848194,67612.0,67611.0,0.26294416]
[1729574703623,0.09057994,67612.0,67611.0,0.26294416]
[1729574703842,0.024,67612.0,67611.0,0.26294416]
[1729574704075,0.09057994,67612.0,67611.0,0.26294416]
[1729574705200,0.23848194,67612.0,67611.0,0.26294416]
[1729574708065,0.171902,67612.0,67611.0,0.26294416]
[1729574708725,0.33577155,67612.0,67611.0,0.26294416]
[1729574708941,0.171902,67612.0,67611.0,0.26294416]
[1729574709402,0.33578199,67612.0,67611.0,0.26294416]
[1729574709627,0.42455406,67612.0,67611.0,0.26294416]
[1729574709847,0.171902,67612.0,67611.0,0.26294416]
[1729574710299,0.33578281,67612.0,67611.0,0.26294416]
[1729574710736,0.33578241,67612.0,67611.0,0.26294416]
[1729574710939,0.33578358,67612.0,67611.0,0.26294416]
[1729574711618,0.171902,67612.0,67611.0,0.26294416]
[1729574712110,0.42455699,67612.0,67611.0,0.26294416]
[1729574712319,0.33578585,67612.0,67611.0,0.26294416]
[1729574712741,0.171902,67612.0,67611.0,0.26294416]
[1729574713171,0.33578615,67612.0,67611.0,0.26294416]
[1729574713833,0.42457824,67612.0,67611.0,0.26294416]
[1729574714068,0.33578615,67612.0,67611.0,0.26294416]
[1729574714281,0.171902,67612.0,67611.0,0.26294416]
[1729574714736,0.18788554,67612.0,67611.0,0.26294416]
[1729574714966,0.33578778,67612.0,67611.0,0.26294416]
[1729574715399,0.27667787,67612.0,67611.0,0.33794416]
[1729574715631,0.024,67612.0,67611.0,0.33794416]
[1729574715876,0.09059539,67612.0,67611.0,0.33794416]
[1729574716095,0.024,67612.0,67611.0,0.33794416]
[1729574716533,0.09059539,67612.0,67611.0,0.33794416]
[1729574716978,0.09059539,67612.0,67611.0,0.45118194]
[1729574716979,0.024,67612.0,67611.0,0.45118194]
[1729574717228,0.024,67612.0,67611.0,0.60408594]
[1729574717918,0.024,67612.0,67611.0,0.49084816]
[1729574718137,0.04439386,67625.0,67613.0,0.005]
[1729574718428,0.06659539,67626.0,67621.0,0.1741]
[1729574718429,0.14788,67622.0,67621.0,0.1741]
[1729574718642,0.14788,67622.0,67621.0,0.32305915]
[1729574718867,0.14788,67622.0,67621.0,0.33957038]
[1729574719304,0.19227386,67622.0,67621.0,0.33957038]
[1729574719529,0.14788,67622.0,67621.0,0.33957038]
[1729574719754,0.14888,67622.0,67621.0,0.33957038]
[1729574719974,0.15088,67622.0,67621.0,0.33957038]
[1729574720458,0.15088,67622.0,67621.0,0.26127038]
[1729574721392,0.19527386,67622.0,67621.0,0.26127038]
[1729574721618,0.19527386,67622.0,67621.0,0.24475915]
[1729574721823,0.19527386,67622.0,67621.0,0.26127038]
[1729574722055,0.19527386,67622.0,67621.0,0.26519038]
[1729574722537,0.15088,67622.0,67621.0,0.26519038]
[1729574723173,0.15088,67622.0,67621.0,0.24867915]
[1729574723624,0.15088,67622.0,67621.0,0.26514544]
[1729574728303,0.15088,67622.0,67621.0,0.34324544]
[1729574736547,0.15088,67622.0,67621.0,0.34489744]
[1729574757879,0.15088,67622.0,67621.0,0.32843115]
[1729574758097,0.15088,67622.0,67621.0,0.34468745]
[1729574759611,0.19521665,67622.0,67621.0,0.34468745]
[1729574760280,0.19521665,67622.0,67621.0,0.33343115]
[1729574760502,0.15088,67622.0,67621.0,0.25533115]
[1729574760733,0.15088,67622.0,67621.0,0.27158665]
[1729574761578,0.19521665,67622.0,67621.0,0.27158665]
[1729574771616,0.15088,67622.0,67621.0,0.27158665]
[1729574773800,0.19525815,67622.0,67621.0,0.27158665]
[1729574774015,0.15088,67622.0,67621.0,0.27158665]
[1729574774263,0.19525815,67622.0,67621.0,0.27158665]
[1729574775326,0.15088,67622.0,67621.0,0.27158665]
[1729574775753,0.19525815,67622.0,67621.0,0.27158665]
[1729574778683,0.15088,67622.0,67621.0,0.25533115]
[1729574778893,0.15088,67622.0,67621.0,0.27157202]
[1729574778894,0.19525815,67622.0,67621.0,0.27157202]
[1729574779102,0.15088,67622.0,67621.0,0.27157202]
[1729574779526,0.19525815,67622.0,67621.0,0.27157202]
[1729574781013,0.15088,67622.0,67621.0,0.27157202]
[1729574781439,0.19525815,67622.0,67621.0,0.27157202]
[1729574781651,0.19525988,67622.0,67621.0,0.27157202]
[1729574784073,0.19525988,67622.0,67621.0,0.25533115]
[1729574784292,0.19525988,67622.0,67621.0,0.27156883]
[1729574784511,0.19525988,67622.0,67621.0,0.17076883]
[1729574784512,0.31098175,67622.0,67621.0,0.17076883]
[1729574784746,0.7198864,67622.0,67621.0,0.15453115]
[1729574784973,0.60893669,67622.0,67621.0,0.15453115]
[1729574785415,0.72865856,67622.0,67621.0,0.005572]
[1729574785639,0.86179821,67622.0,67621.0,0.005572]
[1729574785873,0.72965856,67622.0,67621.0,0.005572]
[1729574787031,0.72765856,67622.0,67621.0,0.005572]
[1729574787249,0.82965856,67622.0,67621.0,0.005572]
[1729574787474,0.83065856,67622.0,67621.0,0.005572]
[1729574787683,0.82865856,67622.0,67621.0,0.005572]
[1729574787895,0.82865856,67622.0,67621.0,0.006572]
[1729574787896,0.84265856,67622.0,67621.0,0.006572]
[1729574788115,0.82965856,67622.0,67621.0,0.009572]
[1729574788549,0.82965856,67622.0,67621.0,0.010572]
[1729574788817,0.82865856,67622.0,67621.0,0.005572]
[1729574789039,0.82865856,67622.0,67621.0,0.013572]
[1729574789257,0.97844067,67622.0,67621.0,0.013572]
[1729574789488,0.82865856,67622.0,67621.0,0.013572]
[1729574789938,0.96738043,67622.0,67621.0,1e-06]
[1729574790176,1.12366587,67622.0,67621.0,1e-06]
[1729574790417,1.12366587,67622.0,67607.0,0.001652]
[1729574790418,0.154902,67612.0,67607.0,0.001652]
[1729574790636,0.59863682,67612.0,67607.0,0.001652]
[1729574790849,0.59863682,67612.0,67611.0,0.01542518]
[1729574791077,0.96068405,67612.0,67611.0,0.001652]
[1729574791304,0.96268405,67612.0,67611.0,0.001652]
[1729574791530,0.82978001,67612.0,67611.0,0.001652]
[1729574791759,0.83078001,67612.0,67611.0,0.007652]
[1729574791969,0.83178001,67612.0,67611.0,0.012652]
[1729574792801,0.82978001,67612.0,67611.0,0.012652]
[1729574794676,0.83178001,67612.0,67611.0,0.012652]
[1729574794879,0.82978001,67612.0,67611.0,0.012652]
[1729574795583,0.83178001,67612.0,67611.0,0.012652]
[1729574796019,0.82978001,67612.0,67611.0,0.012652]
[1729574796684,0.94033128,67612.0,67611.0,0.012652]
[1729574797780,0.94233128,67612.0,67611.0,0.012652]
[1729574797989,0.83178001,67612.0,67611.0,0.012652]
[1729574798325,0.94233128,67612.0,67611.0,0.012652]
[1729574798553,0.83178001,67612.0,67611.0,0.012652]
[1729574799016,0.94233128,67612.0,67611.0,0.012652]
[1729574799222,0.94033128,67612.0,67611.0,0.012652]
[1729574799679,0.94703954,67612.0,67611.0,0.012652]
[1729574799846,0.83131767,67612.0,67611.0,0.012652]
[1729574800465,0.94703954,67612.0,67611.0,0.012652]
[1729574800646,0.83082413,67612.0,67611.0,0.012652]
[1729574800883,0.948546,67612.0,67611.0,0.012652]
[1729574801305,0.946546,67612.0,67611.0,0.012652]
[1729574801551,0.83607352,67612.0,67611.0,0.012652]
[1729574801983,0.83807352,67612.0,67611.0,0.012652]
[1729574802399,0.92642476,67612.0,67611.0,0.012652]
[1729574803044,0.92442476,67612.0,67611.0,0.012652]
[1729574805585,0.83607352,67612.0,67611.0,0.012652]
[1729574806268,0.83807352,67612.0,67611.0,0.012652]
[1729574806762,0.83807352,67612.0,67598.0,0.001652]
[1729574806763,0.152931,67599.0,67598.0,0.001652]
[1729574807006,0.34955287,67599.0,67598.0,0.001652]
[1729574807764,0.35155287,67599.0,67598.0,0.001652]
[1729574808181,0.46527474,67599.0,67598.0,0.001652]
[1729574808827,0.35055287,67599.0,67598.0,0.001652]
[1729574809331,0.34955287,67599.0,67598.0,0.001652]
[1729574809557,0.35155287,67599.0,67598.0,0.001652]
[1729574810855,0.46727474,67599.0,67598.0,0.001652]
[1729574811057,0.35355287,67599.0,67598.0,0.001652]
[1729574812343,0.35337488,67599.0,67598.0,0.001652]
[1729574812567,0.46709675,67599.0,67598.0,0.001652]
[1729574813286,0.35337488,67599.0,67598.0,0.001652]
[1729574813917,0.46909675,67599.0,67598.0,0.001652]
[1729574814164,0.47575561,67599.0,67598.0,0.001652]
[1729574814726,0.36003374,67599.0,67598.0,0.001652]
[1729574815110,0.35803374,67599.0,67598.0,0.001652]
[1729574816784,0.24231187,67599.0,67598.0,0.001652]
[1729574816993,0.35803374,67599.0,67598.0,0.001652]
[1729574823596,0.4021611,67599.0,67598.0,0.001652]
[1729574824017,0.3212611,67599.0,67598.0,0.001652]
[1729574824277,0.27713374,67599.0,67598.0,0.001652]
[1729574824940,0.32128742,67599.0,67598.0,0.001652]
[1729574825137,0.27713374,67599.0,67598.0,0.001652]
[1729574825362,0.32128718,67599.0,67598.0,0.001652]
[1729574825592,0.55908612,67599.0,67598.0,0.001652]
[1729574825817,0.55908612,67599.0,67584.0,0.22265268]
[1729574825818,0.00482201,67585.0,67584.0,0.22265268]
[1729574826054,0.26850488,67585.0,67584.0,0.22265268]
[1729574826281,0.26850488,67585.0,67584.0,0.23676317]
[1729574826502,0.147966,67583.0,67582.0,0.0975]
[1729574827203,0.147966,67583.0,67580.0,0.001652]
[1729574827204,0.14797,67581.0,67580.0,0.001652]
[1729574827443,0.37941374,67581.0,67580.0,0.001652]
[1729574827666,0.26369187,67581.0,67580.0,0.001652]
[1729574828874,0.27669187,67581.0,67580.0,0.001652]
[1729574829111,0.28969187,67581.0,67580.0,0.001652]
[1729574834535,0.17397,67581.0,67580.0,0.177052]
[1729574835029,0.17397,67581.0,67580.0,0.34034284]
[1729574840702,0.026,67581.0,67580.0,0.34052083]
[1729574841489,0.17397,67581.0,67580.0,0.34052083]
[1729574842980,0.17397,67581.0,67580.0,0.32618914]
[1729574843424,0.17397,67581.0,67580.0,0.34052083]
[1729574851645,0.21829802,67581.0,67580.0,0.34052083]
[1729574859261,0.21833729,67581.0,67580.0,0.34052083]
[1729574860376,0.21833729,67581.0,67580.0,0.32618914]
[1729574860797,0.21833729,67581.0,67580.0,0.34048446]
[1729574861217,0.17397,67581.0,67580.0,0.34048446]
[1729574865622,0.17397,67581.0,67580.0,0.34030647]
[1729574865873,0.42652053,67581.0,67580.0,0.25780647]
[1729574866102,0.33777251,67581.0,67580.0,0.25780647]
[1729574866532,0.33777251,67581.0,67580.0,0.16490647]
[1729574867416,0.44870754,67581.0,67580.0,0.16490647]
[1729574869227,0.17397,67581.0,67580.0,0.16490647]
[1729574869443,0.28491469,67581.0,67580.0,0.16490647]
[1729574869657,0.44873146,67581.0,67580.0,0.16490647]
[1729574871222,0.33778677,67581.0,67580.0,0.16490647]
[1729574873167,0.17397,67581.0,67580.0,0.16490647]
[1729574874392,0.17397,67581.0,67580.0,0.26380647]
[1729574875398,0.17397,67581.0,67580.0,0.33930647]
[1729574885442,0.33789474,67581.0,67580.0,0.33930647]
[1729574885877,0.33789501,67581.0,67580.0,0.33930647]
[1729574888664,0.33789501,67581.0,67580.0,0.26380647]
[1729574889148,0.33789501,67581.0,67580.0,0.24951115]
[1729574889388,0.33789501,67581.0,67580.0,0.26381917]
[1729574891012,0.33788932,67581.0,67580.0,0.26381917]
[1729574891486,0.44890131,67581.0,67580.0,0.26381917]
[1729574895003,0.33788932,67581.0,67580.0,0.26381917]
[1729574905876,0.33791674,67581.0,67580.0,0.26381917]
[1729574907715,0.44895752,67581.0,67580.0,0.26381917]
[1729574908196,0.4267454,67581.0,67580.0,0.26381917]
[1729574908643,0.33791661,67581.0,67580.0,0.26381917]
[1729574909520,0.42674938,67581.0,67580.0,0.26381917]
[1729574909976,0.33791661,67581.0,67580.0,0.26381917]
[1729574910207,0.42674607,67581.0,67580.0,0.26381917]
[1729574910437,0.33791661,67581.0,67580.0,0.26381917]
[1729574910879,0.33792255,67581.0,67580.0,0.26381917]
[1729574911088,0.42675186,67581.0,67580.0,0.26381917]
[1729574912016,0.33792255,67581.0,67580.0,0.26381917]
[1729574912689,0.33792255,67581.0,67580.0,0.24951115]
[1729574913150,0.33792255,67581.0,67580.0,0.26381953]
[1729574919910,0.09261441,67581.0,67580.0,0.50159914]
[1729574920128,0.09261441,67581.0,67580.0,0.35149752]
[1729574920129,0.026,67581.0,67580.0,0.35149752]
[1729574920390,0.17397,67581.0,67580.0,0.35149752]
[1729574920828,0.013,67581.0,67580.0,0.35149752]
[1729574921062,0.147969,67582.0,67581.0,0.005]
[1729574921301,0.147969,67582.0,67581.0,0.15395915]
[1729574921487,0.147969,67582.0,67581.0,0.16826046]
[1729574922191,0.295928,67584.0,67583.0,0.005]
[1729574922419,0.48828525,67584.0,67583.0,0.15395915]
[1729574922858,0.48828525,67584.0,67583.0,0.16826046]
[1729574924653,0.49328525,67584.0,67583.0,0.16826046]
[1729574924862,0.19735725,67584.0,67583.0,0.16826046]
[1729574925507,0.157964,67584.0,67583.0,0.16826046]
[1729574928334,0.01,67584.0,67583.0,0.16826046]
[1729574929440,0.01,67584.0,67583.0,0.33976046]
[1729574935339,0.157964,67584.0,67583.0,0.16826046]
[1729574935539,0.157964,67584.0,67583.0,0.16843845]
[1729574942976,0.01,67584.0,67583.0,0.16843845]
[1729574946560,0.01,67584.0,67583.0,0.17009045]
[1729574950044,0.01,67584.0,67583.0,0.26959045]
[1729574960111,0.01,67584.0,67583.0,0.41755645]
[1729574961812,0.01,67584.0,67583.0,0.26959045]
[1729574964142,0.01,67584.0,67583.0,0.41755645]
[1729574981756,0.01,67584.0,67583.0,0.26959045]
[1729574983943,0.157964,67584.0,67583.0,0.17009045]
[1729574984153,0.01,67584.0,67583.0,0.17009045]
[1729574985262,0.157964,67584.0,67583.0,0.15578914]
[1729574985704,0.157964,67584.0,67583.0,0.17000906]
[1729574986393,0.20236172,67584.0,67583.0,0.17000906]
[1729574986612,0.157964,67584.0,67583.0,0.17000906]
[1729574987100,0.20236172,67584.0,67583.0,0.17000906]
[1729574987964,0.157964,67584.0,67583.0,0.17000906]
[1729574988222,0.20236172,67584.0,67583.0,0.17000906]
[1729574988635,0.05439772,67584.0,67583.0,0.17000906]
[1729574989041,0.01,67584.0,67583.0,0.17000906]
[1729574995151,0.147959,67586.0,67585.0,0.36096086]
[1729574995152,0.04440804,67586.0,67585.0,0.36096086]
[1729574995388,0.04440804,67586.0,67585.0,0.39419814]
[1729574995620,0.06661135,67589.0,67585.0,0.26046788]
[1729574995621,0.21456535,67589.0,67585.0,0.26046788]
[1729574995839,0.21456535,67589.0,67586.0,0.14895915]
[1729574996266,0.21456535,67589.0,67587.0,0.01423074]
[1729574996515,0.21456535,67589.0,67588.0,0.14895915]
[1729574997192,0.21456535,67589.0,67588.0,0.16318989]
[1729574998168,0.22456535,67589.0,67588.0,0.16418989]
[1729574998899,0.164954,67589.0,67588.0,0.16418989]
[1729574999233,0.157954,67589.0,67588.0,0.16418989]
[1729574999687,0.166954,67589.0,67588.0,0.16418989]
[1729575004650,0.019,67589.0,67588.0,0.16418989]
[1729575004897,0.166953,67589.0,67588.0,0.25616788]
[1729575005146,0.23356342,67589.0,67588.0,0.25616788]
[1729575011363,0.019,67589.0,67588.0,0.25616788]
[1729575011626,0.0634072,67589.0,67588.0,0.37188975]
[1729575011884,0.019,67589.0,67588.0,0.65008238]
[1729575012104,0.019,67589.0,67588.0,0.73138238]
[1729575014907,0.019,67589.0,67588.0,0.60114475]
[1729575015394,0.019,67589.0,67588.0,0.60614475]
[1729575016287,0.009,67589.0,67588.0,0.60514475]
[1729575016414,0.04440227,67594.0,67588.0,0.36638975]
[1729575016643,0.04440227,67594.0,67592.0,0.11572187]
[1729575016848,0.04440227,67594.0,67593.0,0.23895915]
[1729575017265,0.04440227,67595.0,67594.0,0.00017799]
[1729575017477,0.04440227,67595.0,67594.0,0.14913714]
[1729575017672,0.19232405,67596.0,67594.0,0.14913714]
[1729575017936,0.19232405,67596.0,67595.0,0.14895915]
[1729575019054,0.04438605,67596.0,67595.0,0.26485901]
[1729575019280,0.19232305,67596.0,67595.0,0.26485901]
[1729575019495,0.06740507,67598.0,67595.0,0.26485901]
[1729575019496,0.147937,67597.0,67595.0,0.26485901]
[1729575019707,0.011,67596.0,67595.0,0.26685901]
[1729575019919,0.153937,67596.0,67595.0,0.26585901]
[1729575020129,0.147937,67596.0,67595.0,0.26485901]
[1729575020766,0.152937,67596.0,67595.0,0.26485901]
[1729575022306,0.005,67596.0,67595.0,0.51330458]
[1729575022531,0.005,67596.0,67595.0,0.66124358]
[1729575022782,0.005,67596.0,67595.0,0.67624358]
[1729575024146,0.000826,67598.0,67597.0,0.327735]
[1729575024357,0.000826,67598.0,67597.0,0.6256533]
[1729575026161,0.000826,67598.0,67597.0,0.6306533]
[1729575026162,0.001826,67598.0,67597.0,0.6306533]
[1729575026408,0.002826,67598.0,67597.0,0.6366533]
[1729575026630,0.002826,67598.0,67597.0,0.63683129]
[1729575027720,0.002826,67598.0,67597.0,0.64183129]
[1729575027937,0.002826,67598.0,67597.0,0.64683129]
[1729575030930,0.002826,67598.0,67597.0,0.66983129]
[1729575031405,0.002826,67598.0,67597.0,1.36983129]
[1729575032742,0.002826,67598.0,67597.0,0.66983129]
[1729575034282,0.002826,67598.0,67597.0,0.68388285]
[1729575035844,0.002826,67598.0,67597.0,1.38388285]
[1729575039461,0.002826,67598.0,67597.0,1.49960472]
[1729575041307,0.002826,67598.0,67597.0,1.2349237]
[1729575041596,0.002826,67598.0,67597.0,1.35064557]
[1729575043662,0.002826,67598.0,67597.0,1.31764557]
[1729575044481,0.002826,67598.0,67597.0,1.32264557]
[1729575044713,0.002826,67598.0,67597.0,1.31764557]
[1729575044916,0.002826,67598.0,67597.0,1.45839919]
[1729575047559,0.002826,67598.0,67597.0,1.2019237]
[1729575047769,0.002826,67598.0,67597.0,1.31764557]
[1729575048196,0.002826,67598.0,67597.0,0.61764557]
[1729575050919,0.002826,67598.0,67597.0,0.62264557]
[1729575051333,0.002826,67598.0,67597.0,1.32264557]
[1729575051989,0.002826,67598.0,67597.0,1.32764557]
[1729575052648,0.002826,67598.0,67597.0,0.62764557]
[1729575055690,0.002826,67598.0,67597.0,1.32764557]
[1729575057199,0.002826,67598.0,67597.0,0.62764557]
[1729575061809,0.002826,67598.0,67597.0,1.32764557]
[1729575062428,0.002826,67598.0,67597.0,1.47660472]
[1729575068297,0.002826,67598.0,67597.0,0.77660472]
[1729575070353,0.002826,67598.0,67597.0,0.62764557]
[1729575071344,0.002826,67598.0,67597.0,1.32764557]
[1729575075527,0.002826,67598.0,67597.0,0.62764557]
[1729575086154,0.002826,67598.0,67597.0,0.4279237]
[1729575086377,0.002826,67598.0,67597.0,0.3321237]
[1729575086846,0.002826,67598.0,67597.0,0.4298237]
[1729575087105,0.002826,67598.0,67597.0,0.4248237]
[1729575087561,0.001826,67598.0,67597.0,0.4188237]
[1729575087774,0.002826,67598.0,67597.0,0.4238237]
[1729575089763,0.002826,67598.0,67597.0,0.4188237]
[1729575089764,0.001826,67598.0,67597.0,0.4188237]
[1729575089992,0.002826,67598.0,67597.0,0.4238237]
[1729575097988,0.002826,67598.0,67597.0,0.48405554]
[1729575098211,0.002826,67598.0,67597.0,0.55765554]
[1729575098439,0.002826,67598.0,67597.0,0.56765554]
[1729575098666,0.002826,67598.0,67597.0,0.5124237]
[1729575105837,0.002826,67598.0,67597.0,0.6124237]
[1729575111877,0.002826,67598.0,67597.0,1.3124237]
[1729575115360,0.002826,67598.0,67597.0,0.6124237]
[1729575116271,0.002826,67598.0,67597.0,1.3124237]
[1729575118183,0.002826,67598.0,67597.0,0.6124237]
[1729575118389,0.002826,67598.0,67597.0,0.72814557]
[1729575120506,0.002826,67598.0,67597.0,0.5288237]
[1729575120712,0.002826,67598.0,67597.0,0.54684557]
[1729575121360,0.002826,67598.0,67597.0,0.54184557]
[1729575121791,0.002826,67598.0,67597.0,0.54684557]
[1729575122148,0.002826,67598.0,67597.0,0.55184557]
[1729575125467,0.002826,67598.0,67597.0,0.54684557]
[1729575126295,0.002826,67598.0,67597.0,0.62906876]
[1729575127336,0.049152,67606.0,67605.0,0.005]
[1729575127551,0.049152,67606.0,67605.0,0.30187715]
[1729575128003,0.049152,67606.0,67605.0,0.31572537]
[1729575128207,0.049152,67606.0,67605.0,0.31590336]
[1729575128624,0.051152,67606.0,67605.0,0.31590336]
[1729575129038,0.052152,67606.0,67605.0,0.31590336]
[1729575129688,0.051152,67606.0,67605.0,0.31590336]
[1729575130035,0.049152,67606.0,67605.0,0.31590336]
[1729575130443,0.050152,67606.0,67605.0,0.31590336]
[1729575136725,0.001,67606.0,67605.0,0.31590336]
[1729575139510,0.001826,67606.0,67605.0,0.31590336]
[1729575144607,0.000826,67606.0,67605.0,0.31590336]
[1729575144995,0.000826,67606.0,67605.0,0.31790336]
[1729575145366,0.000826,67606.0,67605.0,0.45001958]
[1729575146015,0.000826,67606.0,67605.0,0.45101958]
[1729575146590,0.000826,67606.0,67605.0,0.31790336]
[1729575146914,0.000826,67606.0,67605.0,0.31890336]
[1729575150762,0.000826,67606.0,67605.0,0.32055536]
[1729575171931,0.000826,67606.0,67605.0,0.16745937]
[1729575172101,0.26446287,67606.0,67605.0,0.16745937]
[1729575172274,0.42839061,67606.0,67605.0,0.16745937]
[1729575172486,0.42839061,67606.0,67605.0,0.15361115]
[1729575172685,0.42839061,67606.0,67605.0,0.15261115]
[1729575172883,0.42839061,67606.0,67605.0,0.15061115]
[1729575173084,0.42939061,67606.0,67605.0,0.15061115]
[1729575173284,0.43439061,67606.0,67605.0,0.15161115]
[1729575173701,0.52316116,67606.0,67605.0,0.15161115]
[1729575174499,0.21630868,67606.0,67605.0,0.15061115]
[1729575174717,0.22430868,67606.0,67605.0,0.1652943]
[1729575174926,0.22330868,67606.0,67605.0,0.1652943]
[1729575175123,0.23130868,67606.0,67605.0,0.1662943]
[1729575175534,0.23130868,67606.0,67605.0,0.16514887]
[1729575175977,0.164741,67606.0,67605.0,0.16514887]
[1729575176658,0.23129499,67606.0,67605.0,0.16514887]
[1729575177315,0.23129499,67606.0,67605.0,0.15146572]
[1729575177588,0.23129499,67606.0,67605.0,0.16514887]
[1729575178697,0.164741,67606.0,67605.0,0.16514887]
[1729575178900,0.23129499,67606.0,67605.0,0.16514887]
[1729575179434,0.164741,67606.0,67605.0,0.16514887]
[1729575180603,0.164741,67606.0,67605.0,0.15146572]
[1729575181045,0.23129499,67606.0,67605.0,0.15146572]
[1729575183221,0.164741,67606.0,67605.0,0.15146572]
[1729575186213,0.20908186,67606.0,67605.0,0.15146572]
[1729575186875,0.164741,67606.0,67605.0,0.15146572]
[1729575187083,0.20908001,67606.0,67605.0,0.15146572]
[1729575191575,0.20907512,67606.0,67605.0,0.15146572]
[1729575192244,0.164741,67606.0,67605.0,0.15146572]
[1729575192452,0.20907522,67606.0,67605.0,0.15146572]
[1729575192978,0.164741,67606.0,67605.0,0.15146572]
[1729575193560,0.41706576,67606.0,67605.0,0.15146572]
[1729575193940,0.32839747,67606.0,67605.0,0.15146572]
[1729575196116,0.32839747,67606.0,67605.0,0.003652]
[1729575196309,0.41706576,67606.0,67605.0,0.003652]
[1729575197363,0.32839747,67606.0,67605.0,0.003652]
[1729575198103,0.164741,67606.0,67605.0,0.003652]
[1729575198310,0.32836669,67606.0,67605.0,0.003652]
[1729575198512,0.32836667,67606.0,67605.0,0.003652]
[1729575198798,0.63087884,67606.0,67605.0,0.003652]
[1729575198934,0.62261699,67606.0,67605.0,0.003652]
[1729575199519,0.61461699,67606.0,67605.0,0.002652]
[1729575199720,0.60661699,67606.0,67605.0,0.001652]
[1729575199944,0.62061699,67606.0,67605.0,0.001652]
[1729575200148,0.62061699,67606.0,67605.0,0.002652]
[1729575200565,0.62361699,67606.0,67605.0,0.007652]
[1729575200987,0.75660055,67606.0,67605.0,0.007652]
[1729575201188,0.62361699,67606.0,67605.0,0.007652]
[1729575201434,0.75660055,67606.0,67605.0,0.007652]
[1729575202129,0.60861699,67606.0,67605.0,0.001652]
[1729575202343,0.60961699,67606.0,67605.0,0.001652]
[1729575202570,0.74360055,67606.0,67605.0,0.001652]
[1729575202797,0.74160055,67606.0,67605.0,0.001652]
[1729575202997,0.60861699,67606.0,67605.0,0.001652]
[1729575203207,0.60961699,67606.0,67605.0,0.001652]
[1729575203831,0.61061699,67606.0,67605.0,0.001652]
[1729575204035,0.74160055,67606.0,67605.0,0.001652]
[1729575205296,0.84160055,67606.0,67605.0,0.001652]
[1729575205519,0.00482201,67595.0,67594.0,0.22265268]
[1729575205729,0.67086081,67595.0,67594.0,0.22265268]
[1729575205938,0.67086081,67595.0,67594.0,0.23414845]
[1729575205939,0.72364644,67595.0,67594.0,0.23414845]
[1729575206155,0.72364644,67595.0,67585.0,0.001652]
[1729575206156,0.147957,67587.0,67585.0,0.001652]
[1729575206361,0.26367887,67587.0,67585.0,0.001652]
[1729575206573,0.26367887,67587.0,67586.0,0.01151616]
[1729575206801,0.147959,67586.0,67585.0,0.001652]
[1729575207005,0.147959,67586.0,67585.0,0.15061115]
[1729575207209,0.147959,67586.0,67585.0,0.16212911]
[1729575208929,0.159959,67586.0,67585.0,0.16212911]
[1729575210337,0.171959,67586.0,67585.0,0.16212911]
[1729575212838,0.171959,67586.0,67585.0,0.01316996]
[1729575213456,0.171959,67586.0,67585.0,0.001652]
[1729575213664,0.171959,67586.0,67585.0,0.01339949]
[1729575214937,0.171959,67586.0,67585.0,0.001652]
[1729575217838,0.17678101,67586.0,67585.0,0.001652]
[1729575222375,0.17678101,67586.0,67585.0,0.005168]
[1729575235233,0.24317305,67586.0,67585.0,0.005168]
[1729575236479,0.42875876,67586.0,67585.0,0.005168]
[1729575236643,0.42879967,67586.0,67585.0,0.005168]
[1729575237085,0.45093995,67586.0,67585.0,0.005168]
[1729575237332,0.34023855,67586.0,67585.0,0.005168]
[1729575237537,0.4509582,67586.0,67585.0,0.005168]
[1729575237972,0.34023855,67586.0,67585.0,0.005168]
[1729575238170,0.45095372,67586.0,67585.0,0.005168]
[1729575238613,0.34023855,67586.0,67585.0,0.005168]
[1729575239058,0.45095152,67586.0,67585.0,0.005168]
[1729575240245,0.45098113,67586.0,67585.0,0.005168]
[1729575240479,0.34023855,67586.0,67585.0,0.005168]
[1729575241185,0.45097975,67586.0,67585.0,0.103068]
[1729575241419,0.45097975,67586.0,67585.0,0.11485534]
[1729575241861,0.45097975,67586.0,67585.0,0.01695534]
[1729575241862,0.34023855,67586.0,67585.0,0.01695534]
[1729575242088,0.34023855,67586.0,67585.0,0.005168]
[1729575242314,0.34023855,67586.0,67585.0,0.01695534]
[1729575242581,0.34023855,67586.0,67585.0,0.005168]
[1729575242794,0.45101692,67586.0,67585.0,0.005168]
[1729575243034,0.45101631,67586.0,67585.0,0.01695534]
[1729575243272,0.34023855,67586.0,67585.0,0.01695534]
[1729575251093,0.47335715,67586.0,67585.0,0.01695534]
[1729575251777,0.34023855,67586.0,67585.0,0.01695534]
[1729575252390,0.340613,67586.0,67585.0,0.01695534]
[1729575252831,0.4737554,67586.0,67585.0,0.01695534]
[1729575253449,0.340613,67586.0,67585.0,0.01695534]
[1729575253647,0.58947437,67586.0,67585.0,0.01695534]
[1729575254680,0.45633487,67586.0,67585.0,0.01695534]
[1729575256597,0.45633465,67586.0,67585.0,0.01695534]
[1729575259343,0.58948047,67586.0,67585.0,0.01695534]
[1729575259790,0.45633465,67586.0,67585.0,0.01695534]
[1729575260009,0.58948047,67586.0,67585.0,0.01695534]
[1729575262088,0.45633465,67586.0,67585.0,0.01695534]
[1729575262987,0.58951943,67586.0,67585.0,0.01695534]
[1729575263117,0.58951966,67586.0,67585.0,0.01695534]
[1729575263523,0.45633465,67586.0,67585.0,0.01695534]
[1729575263752,0.5895197,67586.0,67585.0,0.01695534]
[1729575265596,0.45633465,67586.0,67585.0,0.01695534]
[1729575265805,0.5895225,67586.0,67585.0,0.01695534]
[1729575266028,0.45633465,67586.0,67585.0,0.01695534]
[1729575266939,0.58952725,67586.0,67585.0,0.01695534]
[1729575267158,0.45633465,67586.0,67585.0,0.01695534]
[1729575268937,0.58953597,67586.0,67585.0,0.01695534]